fUST/lending_fUST_20240815
["ID","MTS","AMOUNT","RATE_DAILY","PERIOD"]
[335001643,1723716725170,-200.0,0.00024658,2]
[335001644,1723716725181,-200.0,0.00024658,15]
[335001645,1723716725191,-380.0,0.00024658,2]
[335001646,1723716725201,-1500.0,0.00024732,2]
[335001647,1723716725210,-500.0,0.00024781,2]
[335001648,1723716725221,-500.0,0.00024788,2]
[335001649,1723716725231,-3200.0,0.00024861,2]
[335001650,1723716725240,-1500.0,0.00024876,2]
[335001651,1723716725250,-1500.0,0.00024894,2]
[335001652,1723716725260,-11807.35203468,0.000249,2]
[335001653,1723716725270,-800.02,0.00024931,3]
[335001654,1723716725280,-4100.0,0.00024978,2]
[335001655,1723716725289,-180.6625943,0.00024999,2]
[335001656,1723716725299,-160.0,0.00024999,2]
[335001657,1723716725309,-1000.5,0.00025,31]
[335001658,1723716725319,-1129.6,0.00025,31]
[335001659,1723716725330,-1000.5,0.00025,31]
[335001660,1723716725341,-500.5,0.00025,31]
[335001661,1723716725353,-150.5,0.00025,31]
[335001662,1723716725363,-178.4,0.00025,31]
[335001663,1723716725373,-154.77557542,0.00025,2]
[335001664,1723716725383,-194.56220442,0.00025,2]
[335001665,1723716725393,-189.68346517,0.00025,2]
[335001666,1723716725404,-402.66527594,0.00025,2]
[335001667,1723716725414,-246.06147312,0.00025,2]
[335001668,1723716725424,-1028.3863424,0.00025,2]
[335001669,1723716725435,-300.0,0.00025,2]
[335001670,1723716725446,-300.0,0.00025,2]
[335001671,1723716725456,-300.0,0.00025,2]
[335001672,1723716725465,-300.0,0.00025,2]
[335001673,1723716725475,-300.0,0.00025,2]
[335001674,1723716725484,-300.0,0.00025,2]
[335001675,1723716725494,-300.0,0.00025,2]
[335001676,1723716725504,-191.17143401,0.00025,2]
[335001677,1723716725514,-351.0,0.00025,6]
[335001678,1723716725524,-286.84601469,0.00025,2]
[335001679,1723716725533,-75247.3533043,0.00025,2]
[335001680,1723716725544,-913.53413143,0.00025,2]
[335001681,1723716725554,-500.0,0.00025,2]
[335001682,1723716725563,-2065.18061826,0.00025,10]
[335001683,1723716725573,-23222.90341771,0.00025,30]
[335001684,1723716725585,-294.4,0.00025,2]
[335001685,1723716725597,-220.799999,0.00025,2]
[335001686,1723716725607,-250000.0,0.00025,15]
[335001687,1723716725617,-102440.75546425,0.00025,60]
[335001688,1723716725628,-192.99802415,0.00025,2]
[335001689,1723716725638,-500.0,0.00025051,2]
[335001690,1723716725647,-4100.0,0.00025084,2]
[335001691,1723716725657,-160.0,0.00025089,2]
[335001692,1723716725668,-117095.26775576,0.0002509,2]
[335001693,1723716725678,-114552.2863211,0.0002509,2]
[335001694,1723716725689,-44149.09413291,0.0002509,2]
[335001695,1723716725699,-1000.0,0.00025092,2]
[335001696,1723716725709,-4100.0,0.00025099,2]
[335001697,1723716725720,-500.0,0.00025118,2]
[335001698,1723716725730,-500.0,0.00025153,2]
[335001699,1723716725740,-3200.0,0.00025185,2]
[335001700,1723716725752,-3200.0,0.0002519,2]
[335001701,1723716725763,-1500.0,0.00025202,2]
[335001702,1723716725773,-800.02,0.00025205,3]
[335001703,1723716725783,-500.0,0.00025208,2]
[335001704,1723716725794,-500.0,0.00025233,2]
[335001705,1723716725804,-500.0,0.00025235,2]
[335001706,1723716725813,-1500.0,0.0002524,2]
[335001707,1723716725824,-500.0,0.00025274,2]
[335001708,1723716725834,-1000.0,0.00025286,2]
[335001709,1723716725846,-3200.0,0.00025298,2]
[335001710,1723716725857,-304.16429017,0.000253,10]
[335001711,1723716725867,-1500.0,0.00025365,2]
[335001712,1723716725877,-517.0,0.00025373,2]
[335001713,1723716725886,-1000.0,0.00025388,2]
[335001714,1723716725897,-500.0,0.0002539,2]
[335001715,1723716725907,-500.0,0.00025404,2]
[335001716,1723716725916,-500.0,0.00025436,2]
[335001717,1723716725926,-500.0,0.0002544,2]
[335001718,1723716725937,-900.0,0.00025469,3]
[335001719,1723716725946,-1000.0,0.0002547,2]
[335001720,1723716725957,-500.0,0.00025475,2]
[335001721,1723716725967,-800.02,0.00025479,3]
[335001722,1723716725977,-4100.0,0.00025487,2]
[335001723,1723716725987,-3200.0,0.00025493,2]
[335001724,1723716725997,-1500.0,0.00025516,2]
[335001725,1723716726007,-500.0,0.00025517,2]
[335001726,1723716726017,-4100.0,0.0002552,2]
[335001727,1723716726029,-500.0,0.00025566,2]
[335001728,1723716726039,-3200.0,0.00025584,2]
[335001729,1723716726051,-1500.0,0.00025587,2]
[335001730,1723716726062,-1000.0,0.00025624,2]
[335001731,1723716726071,-3200.0,0.00025639,2]
[335001732,1723716726082,-1200.0,0.00025673,2]
[335001733,1723716726092,-1493.97,0.000257,7]
[335001734,1723716726104,-3200.0,0.00025708,2]
[335001735,1723716726114,-800.02,0.00025753,3]
[335001736,1723716726124,-3200.0,0.00025787,2]
[335001737,1723716726135,-1000.0,0.00025889,2]
[335001738,1723716726145,-500.0,0.0002589,2]
[335001739,1723716726155,-997.55,0.000259,14]
[335001740,1723716726166,-500.0,0.00025922,2]
[335001741,1723716726176,-1000.0,0.00025924,2]
[335001742,1723716726187,-500.0,0.00026,2]
[335001743,1723716726197,-1500.0,0.00026,2]
[335001744,1723716726207,-1000.0,0.00026002,2]
[335001745,1723716726217,-800.02,0.00026027,3]
[335001746,1723716726227,-763.57,0.00026027,2]
[335001747,1723716726237,-763.57,0.00026027,2]
[335001748,1723716726248,-763.57,0.00026027,2]
[335001749,1723716726257,-763.57,0.00026027,2]
[335001750,1723716726267,-763.57,0.00026027,2]
[335001751,1723716726277,-763.57,0.00026027,2]
[335001752,1723716726287,-763.57,0.00026027,2]
[335001753,1723716726297,-763.57,0.00026027,2]
[335001754,1723716726308,-763.57,0.00026027,2]
[335001755,1723716726318,-763.57,0.00026027,2]
[335001756,1723716726328,-763.57,0.00026027,2]
[335001757,1723716726339,-763.57,0.00026027,2]
[335001758,1723716726348,-763.57,0.00026027,2]
[335001759,1723716726358,-763.57,0.00026027,2]
[335001760,1723716726368,-763.57,0.00026027,2]
[335001761,1723716726378,-763.57,0.00026027,2]
[335001762,1723716726388,-763.57,0.00026027,2]
[335001763,1723716726398,-763.57,0.00026027,2]
[335001764,1723716726410,-763.57,0.00026027,2]
[335001765,1723716726420,-763.57,0.00026027,2]
[335001766,1723716726431,-763.57,0.00026027,2]
[335001767,1723716726441,-763.57,0.00026027,2]
[335001768,1723716726451,-763.57,0.00026027,2]
[335001769,1723716726460,-763.80142696,0.00026027,2]
[335001770,1723716726470,-4100.0,0.00026033,2]
[335001771,1723716726479,-1000.0,0.00026045,2]
[335001772,1723716726490,-500.0,0.00026069,2]
[335001773,1723716726500,-1500.0,0.00026087,2]
[335001774,1723716726511,-62380.32,0.000261,14]
[335001775,1723716726522,-190.0,0.00026109,2]
[335001776,1723716726532,-1000.0,0.00026126,2]
[335001777,1723716726541,-1500.0,0.0002619,2]
[335001778,1723716726551,-500.0,0.00026224,2]
[335001779,1723716726561,-500.0,0.00026236,2]
[335001780,1723716726570,-1500.0,0.00026256,2]
[335001781,1723716726581,-1500.0,0.00026272,2]
[335001782,1723716726594,-800.02,0.00026301,3]
[335001783,1723716726605,-4100.0,0.00026328,2]
[335001784,1723716726615,-301.458892,0.00026388,2]
[335001785,1723716726626,-500.0,0.00026389,2]
[335001786,1723716726636,-3200.0,0.00026403,2]
[335001787,1723716726645,-1000.0,0.00026404,2]
[335001788,1723716726654,-7458.94652043,0.0002649,2]
[335001789,1723716726667,-500.0,0.000265,2]
[335001790,1723716726677,-500.0,0.00026528,2]
[335001791,1723716726688,-500.0,0.00026546,2]
[335001792,1723716726698,-4100.0,0.00026571,2]
[335001793,1723716726708,-800.02,0.00026575,3]
[335001794,1723716726718,-500.0,0.00026576,2]
[335001795,1723716726728,-1500.0,0.00026601,2]
[335001796,1723716726738,-1000.0,0.00026606,2]
[335001797,1723716726748,-4100.0,0.00026609,2]
[335001798,1723716726758,-1000.0,0.00026626,2]
[335001799,1723716726768,-1000.0,0.00026633,2]
[335001800,1723716726840,-3200.0,0.00026637,2]
[335001801,1723716726850,-3200.0,0.00026675,2]
[335001802,1723716726859,-1000.0,0.00026691,2]
[335001803,1723716726868,-1500.0,0.00026737,2]
[335001804,1723716726878,-3200.0,0.00026781,2]
[335001805,1723716726888,-500.0,0.00026831,2]
[335001806,1723716726898,-3200.0,0.00026835,2]
[335001807,1723716726907,-500.0,0.00026838,2]
[335001808,1723716726916,-4100.0,0.00026842,2]
[335001809,1723716726926,-800.02,0.00026849,3]
[335001810,1723716726936,-4100.0,0.0002685,2]
[335001811,1723716726946,-504.34442286,0.00026865,2]
[335001812,1723716726956,-500.64781482,0.00026878,2]
[335001813,1723716726965,-816.04610718,0.00026895,2]
[335001814,1723716726975,-1888.22980615,0.00026897,2]
[335001815,1723716726985,-1000.0,0.00026904,2]
[335001816,1723716726995,-627.65851865,0.00026912,2]
[335001817,1723716727005,-4346.41409894,0.00026922,2]
[335001818,1723716727014,-1000.0,0.00026934,2]
[335001819,1723716727023,-652.21011658,0.00026937,2]
[335001820,1723716727033,-160.0,0.00026944,2]
[335001821,1723716727043,-390431.0585,0.00026945,30]
[335001822,1723716727053,-1000.0,0.00026956,2]
[335001823,1723716727063,-7027.91961495,0.00026959,2]
[335001824,1723716727073,-1634.70928029,0.00026974,2]
[335001825,1723716727082,-737.96808113,0.0002698,2]
[335001826,1723716727092,-500.0,0.00027,2]
[335001827,1723716727102,-500.0,0.00027,30]
[335001828,1723716727113,-192.99802415,0.00027,2]
[335001829,1723716727123,-516.0,0.00027064,2]
[335001830,1723716727133,-800.20816167,0.00027123,3]
[335001831,1723716727144,-504.34442286,0.00027134,2]
[335001832,1723716727153,-750.0,0.00027167,2]
[335001833,1723716727163,-207.72697041,0.00027397,2]
[335001834,1723716727173,-500.0,0.00027397,2]
[335001835,1723716727183,-500.0,0.00027397,5]
[335001836,1723716727192,-500.0,0.00027397,5]
[335001837,1723716727201,-232.70325968,0.00027397,5]
[335001838,1723716727211,-407.4899689,0.00027397,60]
[335001839,1723716727220,-151.0,0.00027397,7]
[335001840,1723716727230,-151.0,0.00027397,7]
[335001841,1723716727239,-151.0,0.00027397,7]
[335001842,1723716727249,-151.0,0.00027397,7]
[335001843,1723716727259,-151.0,0.00027397,7]
[335001844,1723716727269,-151.0,0.00027397,7]
[335001845,1723716727279,-151.0,0.00027397,7]
[335001846,1723716727289,-151.0,0.00027397,7]
[335001847,1723716727298,-151.0,0.00027397,7]
[335001848,1723716727308,-151.0,0.00027397,7]
[335001849,1723716727317,-151.0,0.00027397,7]
[335001850,1723716727327,-151.0,0.00027397,7]
[335001851,1723716727337,-151.0,0.00027397,7]
[335001852,1723716727346,-151.0,0.00027397,7]
[335001853,1723716727357,-151.0,0.00027397,7]
[335001854,1723716727366,-207.243441,0.00027397,7]
[335001855,1723716727376,-1493.97,0.000274,7]
[335001856,1723716727386,-504.34442286,0.00027402,2]
[335001857,1723716727395,-500.0,0.000275,4]
[335001858,1723716727406,-43787.50868561,0.000275,2]
[335001859,1723716727416,-997.55,0.000275,14]
[335001860,1723716727427,-221.1644,0.000275,2]
[335001861,1723716727438,-503.31750549,0.00027671,2]
[335001862,1723716727449,-504.34442286,0.00027671,2]
[335001863,1723716727459,-500.0,0.000278,2]
[335001864,1723716727468,-500.0,0.000278,2]
[335001865,1723716727479,-500.0,0.000278,2]
[335001866,1723716727489,-494.70754989,0.000278,2]
[335001867,1723716727498,-504.34442286,0.0002794,2]
[335001868,1723716727507,-12202.71455454,0.0002799,2]
[335001869,1723716727518,-500.0,0.00028,2]
[335001870,1723716727528,-465.58139875,0.00028064,2]
[335001871,1723716727538,-815.55585834,0.00028093,18]
[335001872,1723716727549,-62380.32,0.000281,14]
[335001873,1723716727561,-504.34442286,0.00028208,2]
[335001874,1723716727571,-344.29634501,0.000284,120]
[335001875,1723716727583,-504.34442286,0.00028477,2]
[335001876,1723716727596,-157.908617,0.00028493,2]
[335001877,1723716727607,-157.908617,0.00028493,8]
[335001878,1723716727618,-157.908617,0.00028493,15]
[335001879,1723716727630,-157.908617,0.00028493,21]
[335001880,1723716727640,-157.908617,0.00028493,28]
[335001881,1723716727652,-157.908617,0.00028493,34]
[335001882,1723716727664,-157.908617,0.00028493,41]
[335001883,1723716727674,-157.908617,0.00028493,47]
[335001884,1723716727687,-157.908617,0.00028493,54]
[335001885,1723716727697,-157.908617,0.00028493,61]
[335001886,1723716727707,-157.908617,0.00028493,67]
[335001887,1723716727718,-157.908617,0.00028493,74]
[335001888,1723716727729,-157.908617,0.00028493,80]
[335001889,1723716727739,-157.908617,0.00028493,87]
[335001890,1723716727750,-157.908617,0.00028493,93]
[335001891,1723716727760,-157.908617,0.00028493,100]
[335001892,1723716727770,-157.908617,0.00028493,106]
[335001893,1723716727780,-157.908617,0.00028493,113]
[335001894,1723716727790,-157.908617,0.00028493,120]
[335001895,1723716727801,-1400.0,0.00028642,4]
[335001896,1723716727813,-504.34442286,0.00028746,2]
[335001897,1723716727823,-516.0,0.00028756,2]
[335001898,1723716727834,-1795.0078,0.00028945,30]
[335001899,1723716727844,-516.0,0.00028997,2]
[335001900,1723716727856,-851.6150667,0.00029,2]
[335001901,1723716727865,-4817.16,0.00029,88]
[335001902,1723716727875,-282.71828198,0.00029,120]
[335001903,1723716727886,-192.99802415,0.00029,2]
[335001904,1723716727896,-504.34442286,0.00029014,2]
[335001905,1723716727906,-504.34442286,0.00029283,2]
[335001906,1723716727918,-1493.97,0.000293,7]
[335001907,1723716727930,-1000.0,0.000295,2]
[335001908,1723716727943,-997.55,0.000295,14]
[335001909,1723716727954,-1469.74373178,0.0002988,30]
[335001910,1723716727966,-814.2980552,0.000299,50]
[335001911,1723716727976,-254.96952233,0.0003,5]
[335001912,1723716727986,-1006.65510175,0.0003,7]
[335001913,1723716727996,-26220.540218,0.0003,15]
[335001914,1723716728006,-1657.01775585,0.0003,4]
[335001915,1723716728016,-500.0,0.0003,2]
[335001916,1723716728027,-589.10537958,0.0003,30]
[335001917,1723716728037,-386.58980292,0.0003,10]
[335001918,1723716728047,-204.03423773,0.0003,30]
[335001919,1723716728057,-450.0,0.0003,120]
[335001920,1723716728067,-309.61800942,0.0003,4]
[335001921,1723716728077,-99999.999998,0.0003,7]
[335001922,1723716728087,-500.0,0.0003,120]
[335001923,1723716728097,-151.0,0.0003,120]
[335001924,1723716728108,-500.0,0.0003,30]
[335001925,1723716728118,-1184.0,0.0003,30]
[335001926,1723716728128,-7000.0,0.0003,30]
[335001927,1723716728139,-151.0,0.0003,120]
[335001928,1723716728149,-261.0,0.0003,2]
[335001929,1723716728160,-271.3504465,0.0003,2]
[335001930,1723716728171,-414.99293411,0.00030137,60]
[335001931,1723716728182,-150.0,0.000303,7]
[335001932,1723716728193,-737.96808113,0.00030326,2]
[335001933,1723716728204,-516.0,0.00030447,2]
[335001934,1723716728216,-2915.66330734,0.00030519,60]
[335001935,1723716728227,-10003.81011265,0.00030585,2]
[335001936,1723716728237,-900.46780979,0.00030585,2]
[335001937,1723716728247,-88821.72603859,0.00030585,2]
[335001938,1723716728258,-300.0,0.00030585,2]
[335001939,1723716728269,-789.40241996,0.00030585,2]
[335001940,1723716728279,-511.6453526,0.00030585,2]
[335001941,1723716728291,-289.59361432,0.00030585,2]
[335001942,1723716728302,-4130.09569787,0.00030585,2]
[335001943,1723716728312,-318.83654232,0.00030585,2]
[335001944,1723716728323,-284.48676699,0.00030585,2]
[335001945,1723716728333,-10045.9152761,0.00030585,2]
[335001946,1723716728344,-1092.9354193,0.00030585,2]
[335001947,1723716728354,-153.57997434,0.00030585,2]
[335001948,1723716728365,-512.98393831,0.00030585,2]
[335001949,1723716728376,-18912.07239239,0.00030585,2]
[335001950,1723716728387,-2004.26300995,0.00030585,2]
[335001951,1723716728398,-1144.62735048,0.00030585,2]
[335001952,1723716728410,-435.13520226,0.00030585,2]
[335001953,1723716728425,-222.26753008,0.00030585,2]
[335001954,1723716728436,-3042.86262532,0.00030585,2]
[335001955,1723716728454,-3629.39267257,0.00030585,2]
[335001956,1723716728466,-1013.72557734,0.00030585,2]
[335001957,1723716728477,-152968.94280571,0.00030585,2]
[335001958,1723716728487,-150.0,0.00030585,14]
[335001959,1723716728497,-150.0,0.00030585,14]
[335001960,1723716728508,-200.0,0.00030585,14]
[335001961,1723716728518,-86232.86953384,0.00030585,7]
[335001962,1723716728529,-2933.06622902,0.00030585,7]
[335001963,1723716728539,-2611.95056817,0.00030585,2]
[335001964,1723716728550,-19118.31,0.00030585,2]
[335001965,1723716728561,-410.29850031,0.00030585,5]
[335001966,1723716728572,-205.3535,0.00030585,5]
[335001967,1723716728585,-177370.01536715,0.00030585,7]
[335001968,1723716728595,-121946.68659002,0.00030585,7]
[335001969,1723716728607,-1000.0,0.00030585,120]
[335001970,1723716728619,-1430.0,0.00030585,120]
[335001971,1723716728632,-1000.0,0.00030585,120]
[335001972,1723716728643,-803.25021898,0.00030585,30]
[335001973,1723716728655,-233.90750282,0.00030585,120]
[335001974,1723716728668,-279.19594177,0.00030585,120]
[335001975,1723716728679,-228.67697091,0.00030585,10]
[335001976,1723716728691,-311.05989115,0.00030585,120]
[335001977,1723716728702,-520.43208693,0.00030585,60]
[335001978,1723716728714,-861.65677638,0.00030585,120]
[335001979,1723716728725,-264.11601847,0.00030585,120]
[335001980,1723716728737,-716.76707049,0.00030585,30]
[335001981,1723716728756,-235.5844781,0.00030585,120]
[335001982,1723716728773,-414.84972182,0.00030585,120]
[335001983,1723716728786,-526.28931999,0.00030585,2]
[335001984,1723716728802,-985.99526589,0.00030585,120]
[335001985,1723716728817,-1039.26856484,0.00030585,10]
[335001986,1723716728835,-231.12897688,0.00030585,30]
[335001987,1723716728850,-894.00344582,0.00030585,120]
[335001988,1723716728868,-2031.68495164,0.00030585,120]
[335001989,1723716728882,-370.09209265,0.00030585,120]
[335001990,1723716728897,-363.18247444,0.00030585,30]
[335001991,1723716728913,-200.0,0.00030585,10]
[335001992,1723716728928,-489.83109813,0.00030585,120]
[335001993,1723716728941,-20023.13248334,0.00030585,120]
[335001994,1723716728955,-5000.0,0.00030585,120]
[335001995,1723716728972,-5000.0,0.00030585,117]
[335001996,1723716728987,-691.739,0.00030585,60]
[335001997,1723716729003,-99982.17481797,0.00030585,7]
[335001998,1723716729018,-4101.27984231,0.00030585,2]
[335001999,1723716729032,-2421.29157323,0.00030585,30]
[335002000,1723716729043,-129499.75408988,0.00030585,30]
[335002001,1723716729057,-464.97033011,0.00030585,2]
[335002002,1723716729072,-320.799999,0.00030585,120]
[335002003,1723716729085,-2009.0,0.00030585,30]
[335002004,1723716729101,-157.41484871,0.00030585,30]
[335002005,1723716729115,-190.74992087,0.00030585,2]
[335002006,1723716729128,-4404.21686781,0.00030585,35]
[335002007,1723716729141,-246287.64450326,0.00030585,10]
[335002008,1723716729153,-3986.42496987,0.00030585,10]
[335002009,1723716729167,-336400.0,0.00030585,14]
[335002010,1723716729179,-9558.25891136,0.00030585,120]
[335002011,1723716729194,-310.04764615,0.00030585,2]
[335002012,1723716729208,-16509.5852963,0.00030585,30]
[335002013,1723716729221,-986.0940199,0.00030585,2]
[335002014,1723716729234,-150.0,0.00030585,30]
[335002015,1723716729248,-150.0,0.00030585,30]
[335002016,1723716729262,-150.0,0.00030585,30]
[335002017,1723716729276,-150.0,0.00030585,30]
[335002018,1723716729290,-150.0,0.00030585,30]
[335002019,1723716729303,-250.0,0.00030585,30]
[335002020,1723716729315,-250.0,0.00030585,30]
[335002021,1723716729327,-250.0,0.00030585,30]
[335002022,1723716729340,-250.0,0.00030585,30]
[335002023,1723716729352,-250.0,0.00030585,30]
[335002024,1723716729365,-250.0,0.00030585,30]
[335002025,1723716729379,-250.0,0.00030585,30]
[335002026,1723716729395,-250.0,0.00030585,30]
[335002027,1723716729412,-250.0,0.00030585,30]
[335002028,1723716729427,-250.0,0.00030585,30]
[335002029,1723716729441,-250.0,0.00030585,30]
[335002030,1723716729454,-250.0,0.00030585,30]
[335002031,1723716729467,-250.0,0.00030585,30]
[335002032,1723716729479,-62380.32,0.000308,14]
[335002033,1723716729492,-192.99802415,0.00031,2]
[335002034,1723716729504,-151.0,0.00031397,120]
[335002035,1723716729516,-151.0,0.00031726,120]
[335002036,1723716729529,-1600.0,0.00031764,4]
[335002037,1723716729541,-1493.97,0.000319,7]
[335002038,1723716729553,-997.55,0.00032,14]
[335002039,1723716729566,-500.0,0.00032,120]
[335002040,1723716729578,-279.14,0.00032,30]
[335002041,1723716729595,-28967.12432401,0.0003212,10]
[335002042,1723716729607,-1000.0,0.000325,2]
[335002043,1723716729619,-2379.81073234,0.00032727,60]
[335002044,1723716729632,-922.19325492,0.00032727,120]
[335002045,1723716729645,-151.0,0.00032795,120]
[335002046,1723716729659,-500.0,0.00032876,2]
[335002047,1723716729672,-500.0,0.00032876,2]
[335002048,1723716729685,-500.0,0.00032876,2]
[335002049,1723716729697,-500.0,0.00032876,2]
[335002050,1723716729710,-500.0,0.00032876,2]
[335002051,1723716729722,-500.0,0.00032876,2]
[335002052,1723716729734,-541.65652877,0.00032876,2]
[335002053,1723716729746,-500.0,0.00032876,2]
[335002054,1723716729759,-508.76472503,0.00032876,2]
[335002055,1723716729771,-500.0,0.00032876,2]
[335002056,1723716729783,-500.0,0.00032876,2]
[335002057,1723716729795,-307.88825253,0.00032876,2]
[335002058,1723716729807,-500.0,0.00032876,2]
[335002059,1723716729818,-600.0,0.00032876,2]
[335002060,1723716729830,-467.6313272,0.00032876,2]
[335002061,1723716729842,-500.0,0.00032876,2]
[335002062,1723716729854,-500.0,0.00032876,2]
[335002063,1723716729867,-484.6962643,0.00032876,2]
[335002064,1723716729881,-500.0,0.00032876,2]
[335002065,1723716729893,-500.0,0.00032876,2]
[335002066,1723716729905,-500.0,0.00032876,2]
[335002067,1723716729917,-500.0,0.00032876,2]
[335002068,1723716729929,-500.0,0.00032876,2]
[335002069,1723716729942,-500.0,0.00032876,2]
[335002070,1723716729954,-500.0,0.00032876,2]
[335002071,1723716729966,-500.0,0.00032876,2]
[335002072,1723716729977,-500.0,0.00032876,2]
[335002073,1723716729989,-500.0,0.00032876,2]
[335002074,1723716730002,-500.0,0.00032876,2]
[335002075,1723716730014,-500.0,0.00032876,2]
[335002076,1723716730026,-500.0,0.00032876,2]
[335002077,1723716730039,-500.0,0.00032876,2]
[335002078,1723716730051,-500.0,0.00032876,2]
[335002079,1723716730062,-584.13506132,0.00032876,2]
[335002080,1723716730075,-651.60786531,0.00032876,2]
[335002081,1723716730087,-500.0,0.00032876,2]
[335002082,1723716730099,-500.0,0.00032876,2]
[335002083,1723716730111,-500.0,0.00032876,2]
[335002084,1723716730122,-500.0,0.00032876,2]
[335002085,1723716730134,-500.0,0.00032876,2]
[335002086,1723716730146,-500.0,0.00032876,2]
[335002087,1723716730157,-500.0,0.00032876,2]
[335002088,1723716730170,-500.0,0.00032876,2]
[335002089,1723716730183,-500.0,0.00032876,2]
[335002090,1723716730196,-500.0,0.00032876,2]
[335002091,1723716730208,-500.0,0.00032876,2]
[335002092,1723716730220,-500.0,0.00032876,2]
[335002093,1723716730231,-500.0,0.00032876,2]
[335002094,1723716730242,-500.0,0.00032876,2]
[335002095,1723716730254,-500.0,0.00032876,2]
[335002096,1723716730266,-500.0,0.00032876,2]
[335002097,1723716730277,-500.0,0.00032876,2]
[335002098,1723716730289,-500.0,0.00032876,2]
[335002099,1723716730300,-500.0,0.00032876,2]
[335002100,1723716730312,-500.0,0.00032876,2]
[335002101,1723716730323,-500.0,0.00032876,2]
[335002102,1723716730335,-500.0,0.00032876,2]
[335002103,1723716730348,-500.0,0.00032876,2]
[335002104,1723716730359,-500.0,0.00032876,2]
[335002105,1723716730370,-500.0,0.00032876,2]
[335002106,1723716730382,-500.0,0.00032876,2]
[335002107,1723716730393,-500.0,0.00032876,2]
[335002108,1723716730406,-500.0,0.00032876,2]
[335002109,1723716730418,-500.0,0.00032876,2]
[335002110,1723716730429,-500.0,0.00032876,2]
[335002111,1723716730443,-500.0,0.00032876,2]
[335002112,1723716730455,-500.0,0.00032876,2]
[335002113,1723716730466,-500.0,0.00032876,2]
[335002114,1723716730478,-500.0,0.00032876,2]
[335002115,1723716730490,-500.0,0.00032876,2]
[335002116,1723716730501,-500.0,0.00032876,2]
[335002117,1723716730512,-500.0,0.00032876,2]
[335002118,1723716730524,-500.0,0.00032876,2]
[335002119,1723716730534,-500.0,0.00032876,2]
[335002120,1723716730545,-500.0,0.00032876,2]
[335002121,1723716730557,-500.0,0.00032876,2]
[335002122,1723716730569,-500.0,0.00032876,2]
[335002123,1723716730582,-500.0,0.00032876,2]
[335002124,1723716730595,-500.0,0.00032876,2]
[335002125,1723716730606,-500.0,0.00032876,2]
[335002126,1723716730618,-395.0533578,0.00032876,2]
[335002127,1723716730631,-500.0,0.00032876,2]
[335002128,1723716730643,-500.0,0.00032876,2]
[335002129,1723716730654,-500.0,0.00032876,2]
[335002130,1723716730666,-500.0,0.00032876,2]
[335002131,1723716730678,-500.0,0.00032876,2]
[335002132,1723716730691,-500.0,0.00032876,2]
[335002133,1723716730703,-500.0,0.00032876,2]
[335002134,1723716730715,-500.0,0.00032876,2]
[335002135,1723716730727,-600.0,0.00032876,2]
[335002136,1723716730738,-500.0,0.00032876,2]
[335002137,1723716730750,-269.25954254,0.00032876,2]
[335002138,1723716730763,-500.0,0.00032876,2]
[335002139,1723716730774,-550.0,0.00032876,2]
[335002140,1723716730787,-304.4694142,0.00032876,2]
[335002141,1723716730799,-500.0,0.00032876,2]
[335002142,1723716730811,-500.0,0.00032876,2]